[Event "*** Titled Tuesday Blitz"]
[Site "Chess.com"]
[Date "2020.11.10"]
[Round "5"]
[White "IngOscarArdila"]
[Black "dpopadic"]
[Result "0-1"]
[WhiteElo "2127"]
[BlackElo "2350"]
[TimeControl "180+1"]
[EndTime "10:57:56 PST"]
[Termination "dpopadic won by resignation"]

1. d4 {[%clk 0:03:00.9]} 1... Nf6 {[%clk 0:02:59.2]} 2. c4 {[%clk 0:03:00.5]}
2... g6 {[%clk 0:02:58.6]} 3. Nc3 {[%clk 0:03:00.3]} 3... Bg7 {[%clk 0:02:58.6]}
4. e4 {[%clk 0:03:00.4]} 4... d6 {[%clk 0:02:59.1]} 5. Nf3 {[%clk 0:03:00.3]}
5... O-O {[%clk 0:02:58.9]} 6. Be2 {[%clk 0:03:00.3]} 6... e5 {[%clk 0:02:58.9]}
7. d5 {[%clk 0:02:59.1]} 7... a5 {[%clk 0:02:58.3]} 8. O-O {[%clk 0:02:57.8]}
8... Na6 {[%clk 0:02:58.3]} 9. Bg5 {[%clk 0:02:56.9]} 9... h6 {[%clk 0:02:57.5]}
10. Bxf6 {[%clk 0:02:56.6]} 10... Qxf6 {[%clk 0:02:56.2]} 11. a3 {[%clk
0:02:55.8]} 11... Bd7 {[%clk 0:02:55.3]} 12. Rb1 {[%clk 0:02:51.4]} 12... Nc5
{[%clk 0:02:51.3]} 13. b4 {[%clk 0:02:49.8]} 13... axb4 {[%clk 0:02:50.8]} 14.
axb4 {[%clk 0:02:50.7]} 14... Na4 {[%clk 0:02:50.6]} 15. Nxa4 {[%clk 0:02:50.5]}
15... Bxa4 {[%clk 0:02:48.2]} 16. Qd2 {[%clk 0:02:49.1]} 16... Bd7 {[%clk
0:02:47.2]} 17. Ra1 {[%clk 0:02:45.6]} 17... Qe7 {[%clk 0:02:44.3]} 18. Qb2
{[%clk 0:02:31.6]} 18... f5 {[%clk 0:02:42.5]} 19. Nd2 {[%clk 0:02:29.7]} 19...
Qg5 {[%clk 0:02:41.9]} 20. Rxa8 {[%clk 0:02:25.7]} 20... Rxa8 {[%clk 0:02:40.4]}
21. Nf3 {[%clk 0:02:22.7]} 21... Qd8 {[%clk 0:02:35]} 22. Bd3 {[%clk 0:02:19.7]}
22... f4 {[%clk 0:02:30.6]} 23. Ra1 {[%clk 0:02:18.4]} 23... Bf8 {[%clk
0:02:20]} 24. Ne1 {[%clk 0:02:05.8]} 24... b6 {[%clk 0:02:18.1]} 25. f3 {[%clk
0:01:57.4]} 25... Qb8 {[%clk 0:02:17.1]} 26. Bf1 {[%clk 0:01:49.4]} 26... Ra7
{[%clk 0:02:13.5]} 27. Rxa7 {[%clk 0:01:46.5]} 27... Qxa7 {[%clk 0:02:13.4]} 28.
Nd3 {[%clk 0:01:39.9]} 28... Qa4 {[%clk 0:02:09]} 29. h3 {[%clk 0:01:33.2]}
29... Qd1 {[%clk 0:01:59.7]} 30. Qe2 {[%clk 0:00:55.6]} 30... Qb3 {[%clk
0:01:51.6]} 31. c5 {[%clk 0:00:36.7]} 31... Bb5 {[%clk 0:01:49.7]} 32. Qd2
{[%clk 0:00:31.4]} 32... Bxd3 {[%clk 0:01:31.8]} 33. Bxd3 {[%clk 0:00:30.2]}
33... dxc5 {[%clk 0:01:30.5]} 34. bxc5 {[%clk 0:00:30]} 34... Bxc5+ {[%clk
0:01:29.2]} 35. Kh2 {[%clk 0:00:23.2]} 35... Qa3 {[%clk 0:01:24.6]} 36. Qd1
{[%clk 0:00:20.2]} 36... Qb2 {[%clk 0:01:19.5]} 37. h4 {[%clk 0:00:19.4]} 37...
Qf2 {[%clk 0:01:18.3]} 0-1

[Event "*** Titled Tuesday Blitz"]
[Site "Chess.com"]
[Date "2020.11.10"]
[Round "5"]
[White "Legendinunknown"]
[Black "SerGo055"]
[Result "1-0"]
[WhiteElo "2713"]
[BlackElo "2440"]
[TimeControl "180+1"]
[EndTime "10:58:01 PST"]
[Termination "Legendinunknown won by checkmate"]

1. d4 {[%clk 0:03:00.9]} 1... Nf6 {[%clk 0:02:57.3]} 2. c4 {[%clk 0:03:00.1]}
2... e6 {[%clk 0:02:57.2]} 3. Nc3 {[%clk 0:02:58]} 3... d5 {[%clk 0:02:53.8]} 4.
Nf3 {[%clk 0:02:57.5]} 4... c6 {[%clk 0:02:50.7]} 5. Bg5 {[%clk 0:02:56.2]} 5...
dxc4 {[%clk 0:02:49.7]} 6. e4 {[%clk 0:02:55.1]} 6... b5 {[%clk 0:02:50]} 7. e5
{[%clk 0:02:55.4]} 7... h6 {[%clk 0:02:50.4]} 8. Bh4 {[%clk 0:02:54.4]} 8... g5
{[%clk 0:02:51]} 9. Nxg5 {[%clk 0:02:54.5]} 9... hxg5 {[%clk 0:02:51.5]} 10.
Bxg5 {[%clk 0:02:55.4]} 10... Nbd7 {[%clk 0:02:50.1]} 11. g3 {[%clk 0:02:54.3]}
11... Bb7 {[%clk 0:02:49.2]} 12. Bg2 {[%clk 0:02:53.4]} 12... Qb6 {[%clk
0:02:49.2]} 13. exf6 {[%clk 0:02:51.6]} 13... O-O-O {[%clk 0:02:16.6]} 14. O-O
{[%clk 0:02:49.6]} 14... c5 {[%clk 0:02:09.8]} 15. d5 {[%clk 0:02:48]} 15... Ne5
{[%clk 0:02:02.2]} 16. Qe2 {[%clk 0:02:36.9]} 16... Nd3 {[%clk 0:01:56.8]} 17.
dxe6 {[%clk 0:02:30]} 17... Bxg2 {[%clk 0:01:56.5]} 18. Kxg2 {[%clk 0:02:29.2]}
18... Qc6+ {[%clk 0:01:46.2]} 19. f3 {[%clk 0:02:18.8]} 19... fxe6 {[%clk
0:01:43.3]} 20. a4 {[%clk 0:02:14.7]} 20... b4 {[%clk 0:01:36.1]} 21. Nb5 {[%clk
0:02:13.1]} 21... Kb7 {[%clk 0:01:35.8]} 22. b3 {[%clk 0:02:11.4]} 22... cxb3
{[%clk 0:01:31.6]} 23. f7 {[%clk 0:02:08.6]} 23... Rd7 {[%clk 0:01:29.2]} 24.
Rad1 {[%clk 0:01:55.1]} 24... c4 {[%clk 0:01:24.8]} 25. Be3 {[%clk 0:01:52.2]}
25... Bc5 {[%clk 0:00:45.6]} 26. Bxc5 {[%clk 0:01:48.5]} 26... Qxc5 {[%clk
0:00:45.9]} 27. Qxe6 {[%clk 0:01:47.5]} 27... Qe7 {[%clk 0:00:46]} 28. Qxe7
{[%clk 0:01:38.8]} 28... Rxe7 {[%clk 0:00:44.7]} 29. Nd6+ {[%clk 0:01:39.3]}
29... Ka6 {[%clk 0:00:34.6]} 30. f4 {[%clk 0:01:31.6]} 30... Nb2 {[%clk
0:00:23.1]} 31. Rde1 {[%clk 0:01:25.7]} 31... Rd7 {[%clk 0:00:20.1]} 32. Re8
{[%clk 0:01:24.5]} 32... Rxf7 {[%clk 0:00:16.2]} 33. Rxh8 {[%clk 0:01:23.5]}
33... Rd7 {[%clk 0:00:16]} 34. Rh6 {[%clk 0:01:22.6]} 34... Ka5 {[%clk
0:00:15.6]} 35. f5 {[%clk 0:01:18.6]} 35... c3 {[%clk 0:00:14.8]} 36. f6 {[%clk
0:01:12.4]} 36... Rxd6 {[%clk 0:00:12.3]} 37. f7 {[%clk 0:01:11.9]} 37... Rd8
{[%clk 0:00:12.9]} 38. Rf5+ {[%clk 0:01:06.6]} 38... Kxa4 {[%clk 0:00:10.3]} 39.
Ra6# {[%clk 0:01:06]} 1-0

[Event "*** Titled Tuesday Blitz"]
[Site "Chess.com"]
[Date "2020.11.10"]
[Round "5"]
[White "Borsuk_Konstantin"]
[Black "Fandorine"]
[Result "0-1"]
[WhiteElo "2611"]
[BlackElo "2834"]
[TimeControl "180+1"]
[EndTime "10:58:04 PST"]
[Termination "Fandorine won on time"]

1. d4 {[%clk 0:03:00.9]} 1... Nf6 {[%clk 0:02:59.3]} 2. c4 {[%clk 0:03:01.5]}
2... g6 {[%clk 0:02:59.4]} 3. Nc3 {[%clk 0:03:01.1]} 3... Bg7 {[%clk 0:02:59.9]}
4. e4 {[%clk 0:03:00.6]} 4... O-O {[%clk 0:03:00.8]} 5. Be3 {[%clk 0:02:59.7]}
5... d6 {[%clk 0:03:01.4]} 6. f3 {[%clk 0:02:59.6]} 6... a6 {[%clk 0:03:00.9]}
7. Qd2 {[%clk 0:02:56.5]} 7... Nbd7 {[%clk 0:03:01.3]} 8. Nge2 {[%clk
0:02:42.9]} 8... b5 {[%clk 0:03:00.9]} 9. cxb5 {[%clk 0:02:36]} 9... axb5 {[%clk
0:03:01.8]} 10. Nxb5 {[%clk 0:02:35.8]} 10... c6 {[%clk 0:03:01.9]} 11. Nbc3
{[%clk 0:02:28.4]} 11... e5 {[%clk 0:03:02]} 12. Nc1 {[%clk 0:02:10.1]} 12... d5
{[%clk 0:02:59.1]} 13. exd5 {[%clk 0:02:05.2]} 13... Nxd5 {[%clk 0:03:00]} 14.
Nxd5 {[%clk 0:02:03.5]} 14... cxd5 {[%clk 0:03:00.9]} 15. Be2 {[%clk 0:01:55.2]}
15... exd4 {[%clk 0:02:53.6]} 16. Bxd4 {[%clk 0:01:51.1]} 16... Qh4+ {[%clk
0:02:29.2]} 17. Bf2 {[%clk 0:01:50.2]} 17... Qf6 {[%clk 0:02:28.6]} 18. Rb1
{[%clk 0:01:10.3]} 18... Ne5 {[%clk 0:02:17]} 19. b3 {[%clk 0:01:08.7]} 19...
Bf5 {[%clk 0:02:16.2]} 20. Nd3 {[%clk 0:00:41]} 20... Nxd3+ {[%clk 0:02:10.8]}
21. Bxd3 {[%clk 0:00:40.7]} 21... Rfe8+ {[%clk 0:02:01.4]} 22. Kf1 {[%clk
0:00:37.1]} 22... Rxa2 {[%clk 0:01:32]} 23. Qxa2 {[%clk 0:00:36.4]} 23... Bxd3+
{[%clk 0:01:32.5]} 24. Kg1 {[%clk 0:00:36.7]} 24... Bxb1 {[%clk 0:01:31.5]} 25.
Qxb1 {[%clk 0:00:36.5]} 25... Qc3 {[%clk 0:01:31.9]} 26. h3 {[%clk 0:00:14.4]}
26... Qd2 {[%clk 0:01:16]} 27. Bg3 {[%clk 0:00:08.7]} 27... Re2 {[%clk
0:01:11.9]} 28. Qf1 {[%clk 0:00:08.7]} 28... Be5 {[%clk 0:01:05.2]} 29. Kh2
{[%clk 0:00:04.9]} 29... Bxg3+ {[%clk 0:01:01]} 30. Kxg3 {[%clk 0:00:05.1]}
30... Qg5+ {[%clk 0:00:58.4]} 31. Kh2 {[%clk 0:00:05]} 31... Qf4+ {[%clk
0:00:58.9]} 32. Kg1 {[%clk 0:00:04.6]} 32... Rc2 {[%clk 0:00:57.9]} 0-1

[Event "*** Titled Tuesday Blitz"]
[Site "Chess.com"]
[Date "2020.11.10"]
[Round "5"]
[White "jens1102"]
[Black "Yashasd1995"]
[Result "0-1"]
[WhiteElo "2372"]
[BlackElo "2555"]
[TimeControl "180+1"]
[EndTime "10:58:05 PST"]
[Termination "Yashasd1995 won by resignation"]

1. Nf3 {[%clk 0:03:00.9]} 1... Nf6 {[%clk 0:02:59.2]} 2. g3 {[%clk 0:02:59.4]}
2... d5 {[%clk 0:02:58.2]} 3. Bg2 {[%clk 0:03:00.3]} 3... Nbd7 {[%clk
0:02:58.2]} 4. d4 {[%clk 0:02:59.1]} 4... e6 {[%clk 0:02:58.1]} 5. O-O {[%clk
0:02:59]} 5... Be7 {[%clk 0:02:58.1]} 6. c4 {[%clk 0:02:55.1]} 6... O-O {[%clk
0:02:58.5]} 7. Nc3 {[%clk 0:02:55.7]} 7... c6 {[%clk 0:02:58]} 8. Bf4 {[%clk
0:02:54.4]} 8... dxc4 {[%clk 0:02:53.3]} 9. e4 {[%clk 0:02:53.3]} 9... b5 {[%clk
0:02:52.8]} 10. Qe2 {[%clk 0:02:42.7]} 10... b4 {[%clk 0:02:39.3]} 11. Nd1
{[%clk 0:02:29.3]} 11... Ba6 {[%clk 0:02:39.2]} 12. Nd2 {[%clk 0:02:09.1]} 12...
Nb6 {[%clk 0:02:32.1]} 13. Be5 {[%clk 0:01:57.9]} 13... Nfd7 {[%clk 0:02:30.6]}
14. Ne3 {[%clk 0:01:53.6]} 14... Nxe5 {[%clk 0:02:29.2]} 15. dxe5 {[%clk
0:01:54.5]} 15... Qd3 {[%clk 0:02:14.6]} 16. Qxd3 {[%clk 0:01:44.1]} 16... cxd3
{[%clk 0:02:15.5]} 17. Rac1 {[%clk 0:01:44.5]} 17... c5 {[%clk 0:02:13.5]} 18.
b3 {[%clk 0:01:40.3]} 18... Rac8 {[%clk 0:02:09.2]} 19. Ndc4 {[%clk 0:01:36]}
19... Rfd8 {[%clk 0:02:06.7]} 20. Rfd1 {[%clk 0:01:33.2]} 20... Rd4 {[%clk
0:01:59.5]} 21. Rd2 {[%clk 0:01:22.8]} 21... Rcd8 {[%clk 0:01:58.7]} 22. Na5
{[%clk 0:01:18.8]} 22... Bb5 {[%clk 0:01:52.1]} 23. f4 {[%clk 0:01:07.8]} 23...
h6 {[%clk 0:01:50.2]} 24. Kf2 {[%clk 0:01:07.6]} 24... R8d7 {[%clk 0:01:47.1]}
25. h4 {[%clk 0:00:56.8]} 25... g5 {[%clk 0:01:34.9]} 26. hxg5 {[%clk
0:00:53.2]} 26... hxg5 {[%clk 0:01:35.8]} 27. f5 {[%clk 0:00:52.9]} 27... Rc7
{[%clk 0:01:32.1]} 28. f6 {[%clk 0:00:16.8]} 28... Bf8 {[%clk 0:01:31.6]} 29.
Ng4 {[%clk 0:00:16.8]} 29... c4 {[%clk 0:01:29.6]} 30. bxc4 {[%clk 0:00:15.9]}
30... Nxc4 {[%clk 0:01:29.5]} 31. Nxc4 {[%clk 0:00:16.3]} 31... Rcxc4 {[%clk
0:01:26.6]} 32. Rxc4 {[%clk 0:00:16]} 32... Bxc4 {[%clk 0:01:27.5]} 33. Ke3
{[%clk 0:00:16.3]} 33... Bc5 {[%clk 0:01:27.8]} 34. Kf3 {[%clk 0:00:10.9]} 34...
Bxa2 {[%clk 0:01:20.9]} 35. Rxa2 {[%clk 0:00:08.8]} 35... d2 {[%clk 0:01:21.2]}
36. Nf2 {[%clk 0:00:05.3]} 36... Rd3+ {[%clk 0:01:20.5]} 37. Ke2 {[%clk
0:00:05.7]} 37... Bxf2 {[%clk 0:01:20]} 38. Rxd2 {[%clk 0:00:02.8]} 38... Rxd2+
{[%clk 0:01:19.9]} 39. Kxd2 {[%clk 0:00:03.7]} 39... Bxg3 {[%clk 0:01:20.3]} 40.
Bf1 {[%clk 0:00:02.5]} 40... Bxe5 {[%clk 0:01:20.8]} 41. Kc2 {[%clk 0:00:03.2]}
41... Bxf6 {[%clk 0:01:21.4]} 42. Kb3 {[%clk 0:00:04.1]} 42... Bc3 {[%clk
0:01:21.7]} 43. Kc4 {[%clk 0:00:04.6]} 43... Kg7 {[%clk 0:01:20.8]} 44. Be2
{[%clk 0:00:05.5]} 44... Kf6 {[%clk 0:01:21]} 45. Bg4 {[%clk 0:00:06.4]} 45...
Ke5 {[%clk 0:01:21.3]} 46. Kd3 {[%clk 0:00:07.1]} 0-1

[Event "*** Titled Tuesday Blitz"]
[Site "Chess.com"]
[Date "2020.11.10"]
[Round "5"]
[White "ChelsieMonica"]
[Black "Ave_Mariia"]
[Result "0-1"]
[WhiteElo "2339"]
[BlackElo "2517"]
[TimeControl "180+1"]
[EndTime "10:58:07 PST"]
[Termination "Ave_Mariia won by checkmate"]

1. c4 {[%clk 0:03:00.9]} 1... c5 {[%clk 0:02:57.1]} 2. g3 {[%clk 0:03:00.7]}
2... g6 {[%clk 0:02:56.9]} 3. Bg2 {[%clk 0:03:01.4]} 3... Bg7 {[%clk 0:02:57.3]}
4. Nf3 {[%clk 0:03:02.1]} 4... Nc6 {[%clk 0:02:57.9]} 5. O-O {[%clk 0:03:01.8]}
5... e6 {[%clk 0:02:58.3]} 6. Nc3 {[%clk 0:03:02.2]} 6... Nge7 {[%clk
0:02:58.4]} 7. e3 {[%clk 0:02:56.7]} 7... O-O {[%clk 0:02:51.8]} 8. d4 {[%clk
0:02:56.7]} 8... cxd4 {[%clk 0:02:41.1]} 9. Nxd4 {[%clk 0:02:51.2]} 9... d5
{[%clk 0:02:35.2]} 10. cxd5 {[%clk 0:02:46.5]} 10... exd5 {[%clk 0:02:34.3]} 11.
b3 {[%clk 0:02:33.3]} 11... Nxd4 {[%clk 0:02:19.1]} 12. exd4 {[%clk 0:02:33.8]}
12... Nf5 {[%clk 0:02:19.4]} 13. Nxd5 {[%clk 0:02:04.9]} 13... Nxd4 {[%clk
0:02:12.5]} 14. Bb2 {[%clk 0:01:59.6]} 14... Nf3+ {[%clk 0:02:09.8]} 15. Qxf3
{[%clk 0:01:58.8]} 15... Bxb2 {[%clk 0:02:10.1]} 16. Rad1 {[%clk 0:01:59]} 16...
Bd7 {[%clk 0:01:30.4]} 17. Qe2 {[%clk 0:01:46.1]} 17... Bg7 {[%clk 0:01:20.8]}
18. Ne7+ {[%clk 0:01:45.6]} 18... Kh8 {[%clk 0:01:20]} 19. Bxb7 {[%clk
0:01:45.6]} 19... Rb8 {[%clk 0:00:53.9]} 20. Bc6 {[%clk 0:01:41.9]} 20... Bg4
{[%clk 0:00:51.5]} 21. Qxg4 {[%clk 0:00:51.8]} 21... Qxe7 {[%clk 0:00:46.8]} 22.
Rd7 {[%clk 0:00:51]} 22... Qc5 {[%clk 0:00:45.1]} 23. Bd5 {[%clk 0:00:50.5]}
23... f5 {[%clk 0:00:43]} 24. Qh4 {[%clk 0:00:48.4]} 24... f4 {[%clk 0:00:31.3]}
25. Kg2 {[%clk 0:00:31.7]} 25... Rbe8 {[%clk 0:00:27.9]} 26. g4 {[%clk
0:00:30.2]} 26... Qb5 {[%clk 0:00:25]} 27. Rd6 {[%clk 0:00:20.2]} 27... f3+
{[%clk 0:00:25.2]} 28. Kh1 {[%clk 0:00:20.2]} 28... Qxf1# {[%clk 0:00:22.3]} 0-1

[Event "*** Titled Tuesday Blitz"]
[Site "Chess.com"]
[Date "2020.11.10"]
[Round "5"]
[White "RobPeresian"]
[Black "oskariot"]
[Result "0-1"]
[WhiteElo "2466"]
[BlackElo "2700"]
[TimeControl "180+1"]
[EndTime "10:58:12 PST"]
[Termination "oskariot won on time"]

1. Nf3 {[%clk 0:01:25.3]} 1... c5 {[%clk 0:02:47.3]} 2. c4 {[%clk 0:01:24.8]}
2... g6 {[%clk 0:02:47.5]} 3. Nc3 {[%clk 0:01:23.6]} 3... Bg7 {[%clk 0:02:47.8]}
4. d4 {[%clk 0:01:22.9]} 4... cxd4 {[%clk 0:02:48.7]} 5. Nxd4 {[%clk 0:01:23.3]}
5... Nc6 {[%clk 0:02:49.6]} 6. Nxc6 {[%clk 0:01:22.5]} 6... bxc6 {[%clk
0:02:50.5]} 7. g3 {[%clk 0:01:21.3]} 7... Nf6 {[%clk 0:02:51]} 8. Bg2 {[%clk
0:01:21.1]} 8... O-O {[%clk 0:02:51.9]} 9. O-O {[%clk 0:01:21]} 9... Rb8 {[%clk
0:02:51.9]} 10. Qd2 {[%clk 0:01:20.7]} 10... Qc7 {[%clk 0:02:39.7]} 11. b3
{[%clk 0:01:15.4]} 11... Bb7 {[%clk 0:02:40]} 12. Bb2 {[%clk 0:01:06.2]} 12...
d6 {[%clk 0:02:36.8]} 13. Rac1 {[%clk 0:00:55.3]} 13... c5 {[%clk 0:02:36.8]}
14. e4 {[%clk 0:00:53.9]} 14... Nd7 {[%clk 0:02:25.1]} 15. Nd5 {[%clk
0:00:52.6]} 15... Bxd5 {[%clk 0:02:24.3]} 16. cxd5 {[%clk 0:00:51.8]} 16... Bxb2
{[%clk 0:02:19.7]} 17. Qxb2 {[%clk 0:00:51.8]} 17... a5 {[%clk 0:02:20.3]} 18.
Qd2 {[%clk 0:00:45.6]} 18... a4 {[%clk 0:02:10]} 19. bxa4 {[%clk 0:00:35.9]}
19... Qa7 {[%clk 0:02:06.3]} 20. a5 {[%clk 0:00:26.2]} 20... Rb4 {[%clk
0:01:54.1]} 21. h4 {[%clk 0:00:18.5]} 21... Nf6 {[%clk 0:01:48.8]} 22. Rfe1
{[%clk 0:00:16.6]} 22... Qc7 {[%clk 0:01:13.9]} 23. a6 {[%clk 0:00:12.5]} 23...
Ra4 {[%clk 0:01:08.8]} 24. f3 {[%clk 0:00:10.1]} 24... Rxa6 {[%clk 0:01:07]} 25.
Bf1 {[%clk 0:00:09.2]} 25... Ra3 {[%clk 0:01:06.9]} 26. Kg2 {[%clk 0:00:08.1]}
26... Rfa8 {[%clk 0:01:06.8]} 27. Bc4 {[%clk 0:00:08]} 27... Nd7 {[%clk
0:01:07.2]} 28. Bb3 {[%clk 0:00:07.4]} 28... Qa5 {[%clk 0:01:04.2]} 29. Qxa5
{[%clk 0:00:06.4]} 29... R8xa5 {[%clk 0:01:03.2]} 30. f4 {[%clk 0:00:06.7]}
30... f6 {[%clk 0:00:57.6]} 31. Re2 {[%clk 0:00:06.5]} 31... Rb5 {[%clk
0:00:56.4]} 32. Rec2 {[%clk 0:00:04.1]} 32... Nb6 {[%clk 0:00:54.6]} 33. Kf2
{[%clk 0:00:03.9]} 33... Rb4 {[%clk 0:00:53.9]} 34. Re1 {[%clk 0:00:02.5]} 34...
c4 {[%clk 0:00:52.7]} 0-1

[Event "*** Titled Tuesday Blitz"]
[Site "Chess.com"]
[Date "2020.11.10"]
[Round "5"]
[White "KaterinaMiroshnik"]
[Black "CM_rui"]
[Result "1-0"]
[WhiteElo "2568"]
[BlackElo "2391"]
[TimeControl "180+1"]
[EndTime "10:58:14 PST"]
[Termination "KaterinaMiroshnik won by checkmate"]

1. d3 {[%clk 0:02:50.1]} 1... Nf6 {[%clk 0:02:59.7]} 2. Nd2 {[%clk 0:02:50.4]}
2... g6 {[%clk 0:02:59.4]} 3. Ngf3 {[%clk 0:02:51.3]} 3... Bg7 {[%clk 0:03:00]}
4. e4 {[%clk 0:02:51.4]} 4... O-O {[%clk 0:03:00.6]} 5. Be2 {[%clk 0:02:51.9]}
5... d6 {[%clk 0:02:59.3]} 6. O-O {[%clk 0:02:52.8]} 6... Nbd7 {[%clk
0:02:55.1]} 7. c3 {[%clk 0:02:53.7]} 7... a5 {[%clk 0:02:54]} 8. Re1 {[%clk
0:02:54.3]} 8... b6 {[%clk 0:02:53.2]} 9. a3 {[%clk 0:02:55.2]} 9... Bb7 {[%clk
0:02:52.4]} 10. b3 {[%clk 0:02:55.5]} 10... e6 {[%clk 0:02:49.2]} 11. Qc2 {[%clk
0:02:54.9]} 11... Qe7 {[%clk 0:02:48.2]} 12. Bb2 {[%clk 0:02:52.3]} 12... h6
{[%clk 0:02:35.5]} 13. d4 {[%clk 0:02:51.8]} 13... Nh5 {[%clk 0:02:24.8]} 14.
Bf1 {[%clk 0:02:48.9]} 14... c5 {[%clk 0:02:17.4]} 15. d5 {[%clk 0:02:32.9]}
15... exd5 {[%clk 0:02:10.7]} 16. exd5 {[%clk 0:02:33.8]} 16... Qd8 {[%clk
0:02:07.6]} 17. c4 {[%clk 0:02:33]} 17... Bxb2 {[%clk 0:01:34.7]} 18. Qxb2
{[%clk 0:02:33.9]} 18... Ng7 {[%clk 0:01:31.8]} 19. g3 {[%clk 0:02:29.2]} 19...
Nf6 {[%clk 0:01:28.4]} 20. Bg2 {[%clk 0:02:26.3]} 20... Nf5 {[%clk 0:01:25]} 21.
Bh3 {[%clk 0:02:23]} 21... Ng7 {[%clk 0:01:19.3]} 22. a4 {[%clk 0:02:18.1]}
22... Nh7 {[%clk 0:01:11.7]} 23. Bg2 {[%clk 0:02:16.1]} 23... Bc8 {[%clk
0:01:10.9]} 24. Re2 {[%clk 0:02:06.4]} 24... Bg4 {[%clk 0:01:09.2]} 25. h3
{[%clk 0:02:04.7]} 25... Bf5 {[%clk 0:01:04.1]} 26. Rae1 {[%clk 0:02:01]} 26...
Ra7 {[%clk 0:00:58.5]} 27. Qc3 {[%clk 0:01:51.8]} 27... g5 {[%clk 0:00:54.7]}
28. Nh2 {[%clk 0:01:48.2]} 28... Qc8 {[%clk 0:00:43.7]} 29. g4 {[%clk
0:01:27.4]} 29... Bg6 {[%clk 0:00:43]} 30. Be4 {[%clk 0:01:26.6]} 30... f5
{[%clk 0:00:32.5]} 31. Bd3 {[%clk 0:01:23.2]} 31... Raf7 {[%clk 0:00:27.4]} 32.
Re6 {[%clk 0:01:14.7]} 32... Nxe6 {[%clk 0:00:19.6]} 33. Rxe6 {[%clk 0:01:14.3]}
33... Rf6 {[%clk 0:00:17.6]} 34. gxf5 {[%clk 0:01:10.1]} 34... Bxf5 {[%clk
0:00:09.3]} 35. Bxf5 {[%clk 0:01:06.8]} 35... Rxf5 {[%clk 0:00:06.8]} 36. Rg6+
{[%clk 0:01:03.9]} 36... Kf7 {[%clk 0:00:07.4]} 37. Qg7+ {[%clk 0:01:03.8]}
37... Ke8 {[%clk 0:00:08]} 38. Re6+ {[%clk 0:00:59.4]} 38... Qxe6 {[%clk
0:00:07.2]} 39. dxe6 {[%clk 0:00:58.1]} 39... Rxf2 {[%clk 0:00:05.2]} 40. Qd7#
{[%clk 0:00:55.3]} 1-0

[Event "*** Titled Tuesday Blitz"]
[Site "Chess.com"]
[Date "2020.11.10"]
[Round "5"]
[White "Grandelicious"]
[Black "FMJoseHerrera"]
[Result "1-0"]
[WhiteElo "2800"]
[BlackElo "2589"]
[TimeControl "180+1"]
[EndTime "10:58:15 PST"]
[Termination "Grandelicious won by resignation"]

1. e4 {[%clk 0:03:00.9]} 1... c5 {[%clk 0:02:56.7]} 2. Nc3 {[%clk 0:03:00.7]}
2... e6 {[%clk 0:02:54.6]} 3. Nf3 {[%clk 0:02:59.1]} 3... a6 {[%clk 0:02:54.5]}
4. g3 {[%clk 0:02:58.6]} 4... Qc7 {[%clk 0:02:54.1]} 5. Bg2 {[%clk 0:02:58.4]}
5... b6 {[%clk 0:02:54.2]} 6. O-O {[%clk 0:02:56.7]} 6... Bb7 {[%clk 0:02:54]}
7. d4 {[%clk 0:02:53.1]} 7... cxd4 {[%clk 0:02:54.9]} 8. Nxd4 {[%clk 0:02:54]}
8... d6 {[%clk 0:02:54.3]} 9. Re1 {[%clk 0:02:46.6]} 9... Nd7 {[%clk 0:02:51.4]}
10. Nd5 {[%clk 0:01:55.1]} 10... exd5 {[%clk 0:02:50.6]} 11. exd5+ {[%clk
0:01:56]} 11... Be7 {[%clk 0:02:51.3]} 12. Nc6 {[%clk 0:01:45.6]} 12... Nc5
{[%clk 0:01:58.7]} 13. b4 {[%clk 0:01:34.2]} 13... Bxc6 {[%clk 0:01:57.8]} 14.
bxc5 {[%clk 0:01:29.5]} 14... Bb7 {[%clk 0:01:51.2]} 15. cxd6 {[%clk 0:01:22.9]}
15... Qxd6 {[%clk 0:01:49.1]} 16. Bf4 {[%clk 0:01:19.3]} 16... Qd7 {[%clk
0:01:48]} 17. d6 {[%clk 0:01:12.9]} 17... Bxg2 {[%clk 0:01:48.9]} 18. Kxg2
{[%clk 0:01:13.3]} 18... O-O-O {[%clk 0:01:47.6]} 19. dxe7 {[%clk 0:01:07.2]}
19... Qb7+ {[%clk 0:01:41.5]} 20. Qf3 {[%clk 0:00:53.5]} 20... Qxf3+ {[%clk
0:01:40.7]} 21. Kxf3 {[%clk 0:00:54.4]} 21... Re8 {[%clk 0:01:41.6]} 22. Rab1
{[%clk 0:00:43.6]} 22... Kb7 {[%clk 0:01:32]} 23. Bd6 {[%clk 0:00:33.6]} 23...
Kc6 {[%clk 0:01:31.8]} 24. Ba3 {[%clk 0:00:32]} 24... Nf6 {[%clk 0:01:31.5]} 25.
Rb3 {[%clk 0:00:26.3]} 25... Nd5 {[%clk 0:01:31.4]} 26. c4 {[%clk 0:00:24.7]}
26... Nc7 {[%clk 0:01:30.5]} 27. Rd1 {[%clk 0:00:23.9]} 27... b5 {[%clk
0:01:10]} 28. Rd6+ {[%clk 0:00:23.5]} 28... Kb7 {[%clk 0:01:10.5]} 29. cxb5
{[%clk 0:00:15.6]} 29... Nxb5 {[%clk 0:01:10.8]} 30. Rdd3 {[%clk 0:00:09.5]}
30... Rc8 {[%clk 0:01:09.6]} 31. Bb4 {[%clk 0:00:09.3]} 31... Rhe8 {[%clk
0:01:09.1]} 32. a4 {[%clk 0:00:09.4]} 32... Na7 {[%clk 0:01:06.8]} 33. Rd7+
{[%clk 0:00:08.5]} 33... Rc7 {[%clk 0:01:05.2]} 34. Ba5+ {[%clk 0:00:08.2]}
34... Nb5 {[%clk 0:01:04.1]} 35. Rxc7+ {[%clk 0:00:08.1]} 35... Ka8 {[%clk
0:00:49.5]} 36. axb5 {[%clk 0:00:09]} 1-0